bitfinex/quotes_BTCUSD_20251012
["timestamp","ask_amount","ask_price","bid_price","bid_amount"]
[1760240249237,1.1593657,111210.0,111200.0,0.00322575]
[1760240249663,0.23747994,111210.0,111200.0,0.06176575]
[1760240249858,0.21767994,111210.0,111200.0,0.06176575]
[1760240250059,0.57644994,111210.0,111200.0,0.02834575]
[1760240250268,1.1700657,111210.0,111200.0,0.00322575]
[1760240250915,1.1583357,111210.0,111200.0,0.00322575]
[1760240252070,1.1583357,111210.0,111200.0,0.06176575]
[1760240253118,0.37784,111210.0,111200.0,0.28992186]
[1760240253542,0.03784,111210.0,111200.0,0.28992186]
[1760240255132,0.03784,111210.0,111200.0,0.29092186]
[1760240256202,0.03784,111210.0,111200.0,0.29192186]
[1760240256774,0.03784,111210.0,111200.0,0.87380762]
[1760240257369,0.03784,111210.0,111200.0,0.29192186]
[1760240258167,0.34,111230.0,111200.0,0.29192186]
[1760240258412,0.27642917,111280.0,111200.0,0.29192186]
[1760240258413,0.23427002,111290.0,111240.0,0.17979144]
[1760240258610,0.19633424,111290.0,111280.0,0.58188576]
[1760240258849,0.0272385,111320.0,111290.0,0.18868976]
[1760240259067,0.0272385,111320.0,111300.0,0.17969322]
[1760240259068,0.0002,111320.0,111300.0,0.17969322]
[1760240259277,0.07182362,111320.0,111310.0,0.23718837]
[1760240259491,0.0002,111320.0,111310.0,0.86737413]
[1760240259712,0.00034975,111320.0,111310.0,0.86737413]
[1760240259937,0.05164975,111320.0,111310.0,0.17967837]
[1760240260138,0.01715975,111320.0,111310.0,0.21167837]
[1760240260352,0.05164975,111320.0,111310.0,0.17967837]
[1760240260775,0.01715975,111320.0,111310.0,0.23718837]
[1760240260986,0.05164975,111320.0,111310.0,0.18067837]
[1760240261427,0.05164975,111320.0,111310.0,0.18167837]
[1760240261634,0.10195975,111320.0,111310.0,0.002]
[1760240261841,0.10195975,111320.0,111310.0,0.001]
[1760240261842,0.44195975,111320.0,111310.0,0.001]
[1760240262054,0.44195975,111320.0,111300.0,0.17969288]
[1760240262260,0.39164975,111320.0,111300.0,0.20520288]
[1760240262493,0.0177,111310.0,111300.0,0.20520288]
[1760240262670,0.3577,111310.0,111300.0,0.23720288]
[1760240262908,0.39219,111310.0,111300.0,0.20520288]
[1760240263116,0.3577,111310.0,111300.0,0.23720288]
[1760240263337,0.4425,111310.0,111290.0,0.18868976]
[1760240263557,0.01788,111300.0,111290.0,0.21380976]
[1760240263821,0.01788,111300.0,111290.0,0.24644976]
[1760240265177,0.39316,111300.0,111290.0,0.00898553]
[1760240265394,0.44236,111300.0,111290.0,0.18969619]
[1760240265907,0.39316,111300.0,111290.0,0.18969619]
[1760240266091,0.39316,111300.0,111290.0,0.19069619]
[1760240266315,0.39316,111300.0,111290.0,0.18969619]
[1760240266888,0.0177,111310.0,111290.0,0.24745619]
[1760240267096,0.00034975,111320.0,111310.0,0.17967837]
[1760240267304,0.02066025,111370.0,111340.0,0.17962996]
[1760240267518,0.00049908,111370.0,111360.0,0.02512]
[1760240267730,0.00049908,111370.0,111360.0,0.1795977]
[1760240267731,0.05303908,111370.0,111360.0,0.1795977]
[1760240267958,0.00049908,111370.0,111360.0,0.2607277]
[1760240268155,0.05303908,111370.0,111360.0,0.1795977]
[1760240268562,0.00049908,111370.0,111360.0,0.2373577]
[1760240268770,0.05303908,111370.0,111360.0,0.1795977]
[1760240268998,0.01775908,111370.0,111360.0,0.2373577]
[1760240269196,0.05303908,111370.0,111350.0,0.20473021]
[1760240269402,0.01757,111360.0,111350.0,0.17961021]
[1760240269612,0.34,111360.0,111350.0,0.23737021]
[1760240269818,0.34,111360.0,111350.0,0.28586021]
[1760240270044,0.34,111360.0,111340.0,0.21373145]
[1760240270250,0.20299431,111380.0,111350.0,0.23737383]
[1760240270459,0.20299431,111380.0,111370.0,0.17957319]
[1760240270460,0.0001496,111380.0,111370.0,0.17957319]
[1760240270676,0.0001496,111380.0,111370.0,0.77070895]
[1760240270896,0.11271305,111420.0,111390.0,0.18851786]
[1760240271108,0.02484,111410.0,111390.0,0.00897746]
[1760240271318,0.02484,111410.0,111390.0,0.18852679]
[1760240271561,0.07404,111410.0,111390.0,0.00897746]
[1760240271765,0.02484,111410.0,111390.0,0.18852442]
[1760240272188,0.02484,111410.0,111390.0,0.00897746]
[1760240272189,0.07404,111410.0,111390.0,0.00897746]
[1760240272404,0.06012,111400.0,111370.0,0.22211416]
[1760240272613,0.06012,111400.0,111360.0,0.18851843]
[1760240272614,0.07404,111390.0,111360.0,0.18851843]
[1760240272841,0.02484,111380.0,111370.0,0.17957702]
[1760240273058,0.02484,111390.0,111370.0,0.18503157]
[1760240273469,0.41404,111390.0,111370.0,0.17958157]
[1760240273661,0.36484,111390.0,111380.0,0.17956545]
[1760240273781,0.63785095,111390.0,111350.0,0.21866612]
[1760240274019,0.36484,111390.0,111370.0,0.17958157]
[1760240274231,0.34,111390.0,111380.0,0.78826775]
[1760240274449,0.06264,111430.0,111410.0,0.17951687]
[1760240274670,0.06264,111430.0,111420.0,0.18836098]
[1760240274671,0.0378,111430.0,111420.0,0.18836098]
[1760240274886,0.0378,111430.0,111420.0,0.18495098]
[1760240275088,0.0378,111430.0,111420.0,0.18836098]
[1760240275537,0.03794954,111430.0,111420.0,0.21510288]
[1760240275773,0.03794954,111430.0,111420.0,0.21851288]
[1760240276181,0.03794954,111430.0,111420.0,0.21951288]
[1760240276416,0.00014954,111430.0,111420.0,0.21610288]
[1760240276846,0.00014954,111430.0,111420.0,0.21951288]
[1760240277284,0.00014954,111430.0,111420.0,0.18595098]
[1760240277495,0.00014954,111430.0,111420.0,0.21510288]
[1760240277753,0.00014954,111430.0,111420.0,0.21951288]
[1760240277957,0.00014954,111430.0,111420.0,0.21610288]
[1760240278159,0.00014954,111430.0,111420.0,0.18695098]
[1760240278346,0.00014954,111430.0,111420.0,0.18150098]
[1760240278549,0.00014954,111430.0,111420.0,0.18695098]
[1760240278754,0.00014954,111430.0,111420.0,0.19036098]
[1760240278997,0.00014954,111430.0,111420.0,0.18695098]
[1760240279393,0.00014954,111430.0,111420.0,0.18936098]
[1760240279595,0.00014954,111430.0,111420.0,0.80139864]
[1760240279809,0.52073158,111460.0,111430.0,0.17947464]
[1760240280018,0.52073158,111460.0,111420.0,0.24260792]
[1760240280019,0.01054391,111430.0,111420.0,0.20459602]
[1760240280229,0.01054391,111430.0,111420.0,0.23723602]
[1760240280644,0.19002878,111430.0,111420.0,0.04876]
[1760240280861,0.01054391,111430.0,111420.0,0.04776]
[1760240281077,0.01054391,111430.0,111420.0,0.01512]
[1760240281078,0.21486878,111430.0,111420.0,0.01512]
[1760240281289,0.25014878,111430.0,111420.0,0.001]
[1760240281552,0.88123454,111430.0,111420.0,0.001]
[1760240281770,0.29934878,111430.0,111420.0,0.001]
[1760240282000,0.17951709,111410.0,111400.0,0.01412]
[1760240282217,0.20434117,111420.0,111400.0,0.19380259]
[1760240282437,0.02484,111410.0,111400.0,0.01426954]
[1760240282670,0.02484,111420.0,111400.0,0.22644275]
[1760240283143,0.21518709,111410.0,111400.0,0.01426954]
[1760240283352,0.29621709,111410.0,111400.0,0.00014954]
[1760240283763,0.29621709,111410.0,111400.0,0.00114954]
[1760240284014,0.67331236,111410.0,111400.0,0.00114954]
[1760240284246,0.29621709,111410.0,111400.0,0.00114954]
[1760240284663,0.24233709,111410.0,111400.0,0.00114954]
[1760240284881,0.20666709,111410.0,111400.0,0.01526954]
[1760240285096,0.20434175,111420.0,111400.0,0.01526954]
[1760240285330,0.20666709,111410.0,111400.0,0.01526954]
[1760240285753,0.24233709,111410.0,111400.0,0.01426954]
[1760240285958,0.02715,111410.0,111400.0,0.01426954]
[1760240286166,0.02715,111410.0,111400.0,0.21096475]
[1760240286372,0.24233709,111410.0,111400.0,0.01426954]
[1760240286842,0.02484,111420.0,111400.0,0.22689275]
[1760240287047,0.21724858,111430.0,111410.0,0.20896709]
[1760240287258,0.21557529,111450.0,111420.0,0.25736098]
[1760240287468,0.02715,111440.0,111430.0,0.19742554]
[1760240287677,0.17948487,111430.0,111420.0,0.02429504]
[1760240287878,0.24230487,111430.0,111420.0,0.02429504]
[1760240288086,0.24230487,111430.0,111420.0,0.20379602]
[1760240288302,0.17951709,111410.0,111400.0,0.01526954]
[1760240288505,0.26053199,111420.0,111400.0,0.01526954]
[1760240288718,0.06282,111410.0,111400.0,0.19480275]
[1760240288924,0.06282,111410.0,111400.0,0.19380275]
[1760240289175,0.06282,111410.0,111400.0,0.19480275]
[1760240289364,0.24233709,111410.0,111400.0,0.01526954]
[1760240289574,0.17950199,111420.0,111400.0,0.00014954]
[1760240289782,0.55661236,111410.0,111400.0,0.00014954]
[1760240289994,0.55661236,111410.0,111400.0,0.00114954]
[1760240290408,0.55661236,111410.0,111400.0,0.00014954]
[1760240290650,0.89661236,111410.0,111400.0,0.00014954]
[1760240290859,0.51951709,111410.0,111400.0,0.00014954]
[1760240291062,0.89661236,111410.0,111400.0,0.00014954]
[1760240291471,0.51951709,111410.0,111400.0,0.00014954]
[1760240291919,0.89661236,111410.0,111400.0,0.00014954]
[1760240293819,0.17959383,111370.0,111350.0,0.30580357]
[1760240294035,0.1795977,111360.0,111350.0,0.0721227]
[1760240294268,0.5566891,111370.0,111350.0,0.00049908]
[1760240294499,0.1795977,111360.0,111350.0,0.00049908]
[1760240294706,0.17959383,111370.0,111350.0,0.18011291]
[1760240294914,0.17959383,111370.0,111350.0,0.00049908]
[1760240295121,0.1795977,111360.0,111350.0,0.00049908]
[1760240295330,0.89669297,111360.0,111350.0,0.00049908]
[1760240295547,0.5195977,111360.0,111350.0,0.00049908]
[1760240296379,0.5195977,111360.0,111350.0,0.00149908]
[1760240296826,0.5195977,111360.0,111350.0,0.00049908]
[1760240297912,0.53327358,111360.0,111350.0,0.02388462]
[1760240298111,0.5195977,111360.0,111350.0,0.00049908]
[1760240298545,0.5195977,111360.0,111350.0,0.00149908]
[1760240298744,0.5195977,111360.0,111350.0,0.00249908]
[1760240299162,0.5195977,111360.0,111350.0,0.00149908]
[1760240299350,0.90314052,111360.0,111350.0,0.00149908]
[1760240299486,0.91710505,111360.0,111350.0,0.00149908]
[1760240299704,0.54000978,111360.0,111350.0,0.00149908]
[1760240299905,0.52604525,111360.0,111350.0,0.00149908]
[1760240300106,0.51640657,111360.0,111350.0,0.00149908]
[1760240300347,0.51640657,111360.0,111350.0,0.00249908]
[1760240301070,1.27059711,111360.0,111350.0,0.00249908]
[1760240301285,0.51640657,111360.0,111350.0,0.00249908]
[1760240301495,0.89350184,111360.0,111350.0,0.00249908]
[1760240301829,0.51640657,111360.0,111350.0,0.00249908]
[1760240302058,0.89350184,111360.0,111350.0,0.00149908]
[1760240302258,0.89350184,111360.0,111350.0,0.00049908]
[1760240303036,0.33680887,111360.0,111350.0,0.18011291]
[1760240303242,0.51640657,111360.0,111350.0,0.00049908]
[1760240303666,0.89350184,111360.0,111350.0,0.00049908]
[1760240303872,0.53040085,111360.0,111350.0,0.00049908]
[1760240304121,0.90749612,111360.0,111350.0,0.00049908]
[1760240305379,0.53040085,111360.0,111350.0,0.00049908]
[1760240305758,0.90749612,111360.0,111350.0,0.00049908]
[1760240306551,0.5771348,111360.0,111350.0,0.00049908]
[1760240306979,0.20003953,111360.0,111350.0,0.00049908]
[1760240307241,0.5771348,111360.0,111350.0,0.00049908]
[1760240307441,0.95423007,111360.0,111350.0,0.00049908]
[1760240307660,0.95423007,111360.0,111310.0,0.02338554]
[1760240307661,0.17966223,111320.0,111310.0,0.02338554]
[1760240307872,0.17966223,111320.0,111310.0,0.0001496]
[1760240309283,0.5567575,111320.0,111310.0,0.0001496]
[1760240309503,0.17964609,111330.0,111310.0,0.18082797]
[1760240309706,0.17966223,111320.0,111310.0,0.0011496]
[1760240309907,0.51966223,111320.0,111310.0,0.0011496]
[1760240310050,0.51966223,111320.0,111310.0,0.18182797]
[1760240310252,0.51966223,111320.0,111310.0,0.18082797]
[1760240310490,0.51966223,111320.0,111310.0,0.0011496]
[1760240310898,0.51966223,111320.0,111310.0,0.0001496]
[1760240311043,0.51966223,111320.0,111310.0,0.0011496]
[1760240311244,0.51966223,111320.0,111310.0,0.0021496]
[1760240311454,0.8967575,111320.0,111310.0,0.0021496]
[1760240311651,0.8967575,111320.0,111310.0,0.0011496]
[1760240312150,0.51966223,111320.0,111310.0,0.0021496]
[1760240312475,0.51966223,111320.0,111310.0,0.0011496]
[1760240312689,0.8967575,111320.0,111310.0,0.0001496]
[1760240312895,0.51966223,111320.0,111310.0,0.0001496]
[1760240313095,0.52376669,111320.0,111310.0,0.0001496]
[1760240313318,0.90086196,111320.0,111310.0,0.0001496]
[1760240313658,0.52376669,111320.0,111310.0,0.0001496]
[1760240313963,0.90086196,111320.0,111310.0,0.0001496]
[1760240315276,0.95163196,111320.0,111310.0,0.0001496]
[1760240315615,0.97652196,111320.0,111310.0,0.0001496]
[1760240318351,0.59942669,111320.0,111310.0,0.0001496]
[1760240318543,0.97652196,111320.0,111310.0,0.0001496]
[1760240319088,0.59942669,111320.0,111310.0,0.0001496]
[1760240319292,0.97652196,111320.0,111310.0,0.0001496]
[1760240319510,0.54865669,111320.0,111310.0,0.0001496]
[1760240319747,0.54865669,111320.0,111310.0,0.17982797]
[1760240319958,0.36899446,111320.0,111310.0,0.17982797]
[1760240320400,0.36899446,111320.0,111310.0,0.0001496]
[1760240320401,0.54865669,111320.0,111310.0,0.0001496]
[1760240320604,0.54865669,111320.0,111310.0,0.01811743]
[1760240320814,0.54865669,111320.0,111310.0,0.1977958]
[1760240321018,0.54865669,111320.0,111310.0,0.0001496]
[1760240321263,0.54865669,111320.0,111310.0,0.1977958]
[1760240321397,0.54865669,111320.0,111310.0,0.22118134]
[1760240321584,0.54865669,111320.0,111310.0,0.20321351]
[1760240321784,0.54865669,111320.0,111310.0,0.02353514]
[1760240321986,0.54865669,111320.0,111310.0,0.04150297]
[1760240322187,0.54865669,111320.0,111310.0,0.01811743]
[1760240322384,0.92575196,111320.0,111310.0,0.0001496]
[1760240322626,0.59765669,111320.0,111310.0,0.0001496]
[1760240322824,0.54865669,111320.0,111310.0,0.0001496]
[1760240323027,0.36899446,111320.0,111310.0,0.1977958]
[1760240323243,0.00410446,111320.0,111310.0,0.20708797]
[1760240324093,0.34410446,111320.0,111310.0,0.20708797]
[1760240324530,0.92583196,111320.0,111310.0,0.0001496]
[1760240324731,0.97483196,111320.0,111310.0,0.0001496]
[1760240325174,0.59773669,111320.0,111310.0,0.0001496]
[1760240325375,0.97483196,111320.0,111310.0,0.0001496]
[1760240325576,0.97483196,111320.0,111310.0,0.0011496]
[1760240325753,0.36907446,111320.0,111310.0,0.1997958]
[1760240325953,0.54873669,111320.0,111310.0,0.0011496]
[1760240326194,0.92583196,111320.0,111310.0,0.01911743]
[1760240326379,0.63549669,111320.0,111310.0,0.0021496]
[1760240326578,0.63549669,111320.0,111310.0,0.17982797]
[1760240326848,0.58649669,111320.0,111310.0,0.18182797]
[1760240327078,0.58649669,111320.0,111310.0,0.0011496]
[1760240327079,0.6684875,111320.0,111310.0,0.0011496]
[1760240327500,0.6684875,111320.0,111310.0,0.0001496]
[1760240327704,0.29139223,111320.0,111310.0,0.0001496]
[1760240328065,0.6684875,111320.0,111310.0,0.0001496]
[1760240328910,0.29139223,111320.0,111310.0,0.0001496]
[1760240329134,0.6684875,111320.0,111310.0,0.0001496]
[1760240329366,0.40273,111320.0,111310.0,0.0001496]
[1760240329586,0.58239223,111320.0,111310.0,0.0001496]
[1760240329788,0.63139223,111320.0,111310.0,0.0001496]
[1760240330032,0.45173,111320.0,111310.0,0.17982797]
[1760240330251,0.37776,111320.0,111310.0,0.1977958]
[1760240330477,0.55742223,111320.0,111310.0,0.17982797]
[1760240330702,0.58239223,111320.0,111310.0,0.0001496]
[1760240331179,1.0084875,111320.0,111310.0,0.0001496]
[1760240332066,1.0084875,111320.0,111310.0,0.0011496]
[1760240332301,1.0084875,111320.0,111310.0,0.0001496]
[1760240334515,0.63139223,111320.0,111310.0,0.0001496]
[1760240334785,1.0084875,111320.0,111310.0,0.0001496]
[1760240337749,1.09720684,111320.0,111310.0,0.0001496]
[1760240337958,1.0084875,111320.0,111310.0,0.0001496]
[1760240338621,0.58239223,111320.0,111310.0,0.0001496]
[1760240338824,1.0084875,111320.0,111310.0,0.0001496]
[1760240339471,1.0084875,111320.0,111310.0,0.02377302]
[1760240342116,0.9677585,111320.0,111310.0,0.0001496]
[1760240342745,0.59066323,111320.0,111310.0,0.0001496]
[1760240342997,0.9677585,111320.0,111310.0,0.0001496]
[1760240343226,0.51669323,111320.0,111310.0,0.0001496]
[1760240343447,0.24267223,111320.0,111310.0,0.0134696]
[1760240343692,0.24267223,111320.0,111310.0,0.06827374]
[1760240344374,0.58267223,111320.0,111310.0,0.06827374]
[1760240344818,0.58267223,111320.0,111310.0,0.08624157]
[1760240345040,0.55746223,111320.0,111310.0,0.08624157]
[1760240345503,0.55746223,111320.0,111310.0,0.08724157]
[1760240345931,0.21746223,111320.0,111310.0,0.08724157]
[1760240346139,0.21746223,111320.0,111310.0,0.08824157]
[1760240346393,0.21746223,111320.0,111310.0,0.06461815]
[1760240346797,0.21746223,111320.0,111310.0,0.09195815]
[1760240347203,0.21746223,111320.0,111310.0,0.06461815]
[1760240348595,0.21746223,111320.0,111310.0,0.09195815]
[1760240349204,0.0378,111320.0,111310.0,0.28722689]
[1760240349406,0.0378,111320.0,111310.0,0.26925906]
[1760240350150,0.0378,111320.0,111310.0,0.22248797]
[1760240351328,0.0378,111320.0,111310.0,0.26985606]
[1760240352306,0.0378,111320.0,111310.0,0.28616487]
[1760240355541,0.21746223,111320.0,111310.0,0.28616487]
[1760240355737,0.21746223,111320.0,111310.0,0.06289201]
[1760240355938,0.24267223,111320.0,111310.0,0.06289201]
[1760240356392,0.21746223,111320.0,111310.0,0.06289201]
[1760240357482,0.24267223,111320.0,111310.0,0.06289201]
[1760240358810,0.21746223,111320.0,111310.0,0.06289201]
[1760240359019,0.21746223,111320.0,111310.0,0.24257038]
[1760240359635,0.21746223,111320.0,111310.0,0.06289201]
[1760240360309,0.21746223,111320.0,111310.0,0.26053821]
[1760240360609,0.0378,111320.0,111310.0,0.26991038]
[1760240361038,0.21746223,111320.0,111310.0,0.0428096]
[1760240361238,0.21746223,111320.0,111310.0,0.0154696]
[1760240361678,0.21746223,111320.0,111310.0,0.19514797]
[1760240361878,0.21746223,111320.0,111310.0,0.22248797]
[1760240362079,0.21746223,111320.0,111310.0,0.24257327]
[1760240362278,0.21746223,111320.0,111310.0,0.0628949]
[1760240362683,0.21746223,111320.0,111310.0,0.24257327]
[1760240362926,0.0378,111320.0,111310.0,0.26991327]
[1760240363124,0.0378,111320.0,111310.0,0.22248797]
[1760240364563,0.17964609,111330.0,111320.0,0.17966057]
[1760240364763,0.17964609,111330.0,111320.0,0.27245451]
[1760240365147,0.17964609,111330.0,111320.0,0.09279394]
[1760240365393,0.17964609,111330.0,111320.0,0.06545394]
[1760240365812,0.01399428,111360.0,111350.0,0.17961383]
[1760240366010,0.07162362,111380.0,111370.0,0.17958157]
[1760240366216,0.07162362,111380.0,111370.0,0.25475157]
[1760240366419,0.03776,111390.0,111380.0,0.17956545]
[1760240366623,0.03776,111390.0,111380.0,0.23849707]
[1760240366826,0.03776,111390.0,111380.0,0.27231707]
[1760240367002,0.03825837,111390.0,111380.0,0.27231707]
[1760240367229,0.2178077,111390.0,111380.0,0.27231707]
[1760240367451,0.03825837,111390.0,111380.0,0.24072545]
[1760240367662,0.03825837,111390.0,111380.0,0.85371971]
[1760240367842,0.03825837,111390.0,111380.0,0.24597707]
[1760240368087,0.03825837,111390.0,111380.0,0.21438545]
[1760240368292,0.03825837,111390.0,111380.0,0.21338545]
[1760240368493,0.03825837,111390.0,111380.0,0.24038545]
[1760240369554,0.03825837,111390.0,111380.0,0.27197707]
[1760240369805,0.03825837,111390.0,111380.0,0.27297707]
[1760240370074,0.03825837,111390.0,111380.0,0.27197707]
[1760240370521,0.03825837,111390.0,111380.0,0.24238545]
[1760240370897,0.03825837,111390.0,111380.0,0.24138545]
[1760240371525,0.03825837,111390.0,111380.0,0.24238545]
[1760240372287,0.00049837,111390.0,111380.0,0.85293999]
[1760240372488,0.00049837,111390.0,111380.0,0.88353161]
[1760240372700,0.00049837,111390.0,111380.0,0.88253161]
[1760240372928,0.00049837,111390.0,111380.0,0.88353161]
[1760240373318,0.00049837,111390.0,111380.0,0.88253161]
[1760240373754,0.00049837,111390.0,111380.0,0.88353161]
[1760240374115,0.00049837,111390.0,111380.0,0.88453161]
[1760240374338,0.00049837,111390.0,111380.0,0.85193999]
[1760240374567,0.00049837,111390.0,111380.0,0.88453161]
[1760240375581,0.00459897,111390.0,111380.0,0.30412897]
[1760240375827,0.00459897,111390.0,111380.0,0.88453161]
[1760240377180,0.00459897,111390.0,111380.0,0.30412897]
[1760240377383,0.00459897,111390.0,111380.0,0.88453161]
[1760240378385,0.00459897,111390.0,111380.0,0.85293999]
[1760240379590,0.00459897,111390.0,111380.0,0.27253735]
[1760240381842,0.00459897,111390.0,111380.0,0.85293999]
[1760240382935,0.00459897,111390.0,111380.0,0.24238545]
[1760240386987,0.2160783,111390.0,111380.0,0.03582]
[1760240387202,0.2412183,111390.0,111380.0,0.002]
[1760240387439,0.82162094,111390.0,111380.0,0.002]
[1760240387644,0.2412183,111390.0,111380.0,0.03605]
[1760240387843,0.2412183,111390.0,111380.0,0.03505]
[1760240388282,0.2412183,111390.0,111380.0,0.03605]
[1760240388480,0.2412183,111390.0,111380.0,0.03505]
[1760240388701,0.2412183,111390.0,111380.0,0.03405]
[1760240388977,0.2412183,111390.0,111380.0,0.03505]
[1760240389356,0.2412183,111390.0,111380.0,0.03405]
[1760240389878,0.1841483,111390.0,111380.0,0.23985545]
[1760240390764,0.1841483,111390.0,111380.0,0.24085545]
[1760240391178,0.2160783,111390.0,111380.0,0.21461545]
[1760240391398,0.2412183,111390.0,111380.0,0.21461545]
[1760240391574,0.1841483,111390.0,111380.0,0.21461545]
[1760240391792,0.2412183,111390.0,111380.0,0.001]
[1760240392014,0.2915683,111390.0,111380.0,0.001]
[1760240392781,0.87197094,111390.0,111380.0,0.001]
[1760240392984,0.2915683,111390.0,111380.0,0.001]
[1760240393758,0.87197094,111390.0,111380.0,0.001]
[1760240395630,1.30069028,111390.0,111380.0,0.001]
[1760240395910,1.30069028,111390.0,111360.0,0.07906049]
[1760240395911,0.17958157,111370.0,111360.0,0.03159162]
[1760240396045,0.17958157,111370.0,111340.0,0.03159162]
[1760240396046,0.17961383,111350.0,111340.0,0.03159162]
[1760240396246,0.23668383,111350.0,111340.0,0.06564162]
[1760240397291,0.23668383,111350.0,111340.0,0.0341996]
[1760240397514,0.23668383,111350.0,111340.0,0.21382956]
[1760240397515,0.17961383,111350.0,111340.0,0.21382956]
[1760240397659,0.17961383,111350.0,111340.0,0.24007956]
[1760240398287,0.5196063,111360.0,111340.0,0.24107956]
[1760240398495,0.5196063,111360.0,111350.0,0.01234]
[1760240398664,0.5196063,111360.0,111350.0,0.04639]
[1760240399607,0.5515363,111360.0,111350.0,0.04639]
[1760240399803,0.2115363,111360.0,111350.0,0.04639]
[1760240400049,0.1796063,111360.0,111350.0,0.04639]
[1760240400252,0.03776,111370.0,111360.0,0.1795977]
[1760240400386,0.03776,111370.0,111360.0,0.2136477]
[1760240400590,0.21734157,111370.0,111360.0,0.2388977]
[1760240400804,0.03776,111370.0,111360.0,0.2388977]
[1760240401396,0.04068952,111370.0,111360.0,0.2388977]
[1760240401764,0.22027109,111370.0,111360.0,0.2388977]
[1760240401895,0.22027109,111370.0,111360.0,0.2136477]
[1760240402092,0.04068952,111370.0,111360.0,0.2388977]
[1760240403334,0.04068952,111370.0,111360.0,0.27048932]
[1760240403535,0.22027109,111370.0,111360.0,0.27048932]
[1760240403980,0.22027109,111370.0,111360.0,0.2398977]
[1760240404194,0.22027109,111370.0,111360.0,0.2408977]
[1760240404605,0.22027109,111370.0,111360.0,0.2156477]
[1760240404801,0.04068952,111370.0,111360.0,0.2408977]
[1760240404972,0.04068952,111370.0,111360.0,0.82130034]
[1760240405180,0.04068952,111370.0,111360.0,0.27248932]
[1760240406735,0.04068952,111370.0,111360.0,0.24723932]
[1760240407355,0.22027109,111370.0,111360.0,0.24723932]
[1760240407559,0.25354109,111370.0,111360.0,0.24723932]
[1760240407938,0.22027109,111370.0,111360.0,0.24723932]
[1760240408757,0.65549766,111370.0,111360.0,0.03359162]
[1760240408981,0.70424766,111370.0,111360.0,0.002]
[1760240409166,0.27813109,111370.0,111360.0,0.03513]
[1760240409545,0.04068952,111370.0,111360.0,0.66689566]
[1760240409773,0.04068952,111370.0,111360.0,0.28744657]
[1760240409980,0.04068952,111370.0,111360.0,0.66381314]
[1760240410856,0.04068952,111370.0,111360.0,0.28644657]
[1760240411942,0.04068952,111370.0,111360.0,0.28744657]
[1760240413782,0.00292952,111370.0,111360.0,0.66481314]
[1760240414386,0.18251109,111370.0,111360.0,0.26219657]
[1760240414601,0.18251109,111370.0,111360.0,0.29378253]
[1760240415432,0.18251109,111370.0,111360.0,0.26219657]
[1760240415853,0.18251109,111370.0,111360.0,0.08259887]
[1760240416064,0.18251109,111370.0,111360.0,0.08106722]
[1760240416065,0.61773766,111370.0,111360.0,0.08106722]
[1760240416273,0.66648766,111370.0,111360.0,0.03359835]
[1760240416702,1.00648766,111370.0,111360.0,0.002]
[1760240417116,1.00648766,111370.0,111360.0,0.001]
[1760240417325,0.1795977,111360.0,111350.0,0.01234]
[1760240417732,0.61482427,111360.0,111350.0,0.04547]
[1760240417938,0.2374577,111360.0,111350.0,0.04547]
[1760240418322,0.2374577,111360.0,111350.0,0.01234]
[1760240418930,0.17961383,111350.0,111340.0,0.07921682]
[1760240419085,0.17961383,111350.0,111340.0,0.11234682]
[1760240419423,0.17961383,111350.0,111340.0,0.06487795]
[1760240419624,0.28622383,111350.0,111340.0,0.03174795]
[1760240419836,0.23747383,111350.0,111340.0,0.06487795]
[1760240420036,0.23747383,111350.0,111340.0,0.06587795]
[1760240420540,0.23747383,111350.0,111340.0,0.06687795]
[1760240420877,0.23747383,111350.0,111340.0,0.06587795]
[1760240421095,0.23747383,111350.0,111340.0,0.24550791]
[1760240421290,0.2041877,111360.0,111340.0,0.31722678]
[1760240421491,0.2041877,111360.0,111350.0,0.01234]
[1760240421698,0.2078677,111360.0,111350.0,0.04547]
[1760240421918,0.2324577,111360.0,111350.0,0.04547]
[1760240422207,0.1745977,111360.0,111350.0,0.04547]
[1760240422363,0.1795977,111360.0,111350.0,0.12027973]
[1760240422865,0.21521153,111360.0,111350.0,0.07706835]
[1760240423070,0.18194153,111360.0,111350.0,0.04547]
[1760240423969,0.6171681,111360.0,111350.0,0.01234]
[1760240424107,0.23980153,111360.0,111350.0,0.04547]
[1760240424643,0.06020383,111360.0,111350.0,0.04547]
[1760240424992,0.23980153,111360.0,111350.0,0.04547]
[1760240426005,0.18194153,111360.0,111350.0,0.04547]
[1760240427633,0.00234383,111360.0,111350.0,0.22508383]
[1760240427838,0.18194153,111360.0,111350.0,0.28116218]
[1760240428038,0.00234383,111360.0,111350.0,0.24956383]
[1760240428239,0.00234383,111360.0,111350.0,0.28116218]
[1760240428440,0.00234383,111360.0,111350.0,0.65852875]
[1760240429474,0.00234383,111360.0,111350.0,0.2980327]
[1760240429919,0.00234383,111360.0,111350.0,0.2970327]
[1760240430151,0.00234383,111360.0,111350.0,0.2980327]
[1760240430370,0.00234383,111360.0,111350.0,0.2970327]
[1760240430791,0.00234383,111360.0,111350.0,0.2980327]
[1760240431021,0.00234383,111360.0,111350.0,0.2990327]
[1760240431388,0.00234383,111360.0,111350.0,0.2980327]
[1760240431550,0.00234383,111360.0,111350.0,0.25056383]
[1760240431752,0.00234383,111360.0,111350.0,0.6289304]
[1760240432134,0.00234383,111360.0,111350.0,0.67631505]
[1760240432644,0.00234383,111360.0,111350.0,0.6289304]
[1760240433135,0.00234383,111360.0,111350.0,0.6590823]
[1760240435233,0.00234383,111360.0,111350.0,0.9990823]
[1760240435437,0.00234383,111360.0,111350.0,1.45607821]
[1760240435438,1e-08,111360.0,111350.0,1.45607821]
[1760240435640,1e-08,111360.0,111350.0,1.17871163]
[1760240435858,0.03967679,111430.0,111420.0,0.17950098]
[1760240436037,0.07182362,111440.0,111430.0,0.17948487]
[1760240436244,0.0002,111440.0,111430.0,0.61325144]
[1760240436446,0.0002,111440.0,111430.0,0.23588487]
[1760240437093,0.00069868,111440.0,111430.0,0.23588487]
[1760240437975,0.00069868,111440.0,111430.0,0.23688487]
[1760240438400,0.00069868,111440.0,111430.0,0.64540334]
[1760240438786,0.00069868,111440.0,111430.0,0.69176078]
[1760240438965,0.00069868,111440.0,111430.0,0.69276078]
[1760240439351,0.0002,111470.0,111460.0,0.17943656]
[1760240439552,0.00034951,111470.0,111460.0,0.58128313]
[1760240439812,0.00034951,111470.0,111460.0,0.63768313]
[1760240440313,0.00034951,111470.0,111460.0,0.66783503]
[1760240441207,0.00034951,111470.0,111460.0,0.66883503]
[1760240441945,0.00034951,111470.0,111460.0,0.66983503]
[1760240442283,0.00678752,111470.0,111460.0,0.66983503]
[1760240442994,0.00678752,111470.0,111460.0,0.29203846]
[1760240443949,0.00678752,111470.0,111460.0,0.66940503]
[1760240444146,0.00678752,111470.0,111460.0,0.29203846]
[1760240444352,0.00678752,111470.0,111460.0,0.66940503]
[1760240445339,0.00678752,111470.0,111460.0,0.29203846]